bitfinex-derivatives/quotes_SOLF0:USTF0_20250124
["timestamp","ask_amount","ask_price","bid_price","bid_amount"]
[1737730565829,0.026975,269.41,269.35,0.02367564]
[1737730567331,0.026975,269.41,269.35,3.73607564]
[1737730567527,0.026975,269.41,269.35,0.02367564]
[1737730567932,3.7122,269.37,269.35,0.02367564]
[1737730568131,0.026975,269.41,269.35,0.02367564]
[1737730568532,3.738675,269.41,269.35,0.02367564]
[1737730568735,0.026975,269.41,269.35,13.78473791]
[1737730569239,0.026975,269.41,269.35,0.02367564]
[1737730570027,0.026975,269.41,269.35,13.78473791]
[1737730570330,1.5523,269.49,269.4,13.76106227]
[1737730571237,2.2381,269.54,269.4,13.76106227]
[1737730571431,2.2381,269.54,269.45,13.76106227]
[1737730571735,0.02817496,269.47,269.45,17.47206227]
[1737730571937,1.4899,269.57,269.45,13.76106227]
[1737730572131,1.4899,269.57,269.42,0.0276707]
[1737730572132,0.44155,269.61,269.51,13.76106227]
[1737730572437,0.44155,269.61,269.56,13.76106227]
[1737730573138,0.46572379,269.61,269.56,13.7895564]
[1737730573736,0.46572379,269.61,269.56,0.02849413]
[1737730575235,4.17462379,269.61,269.56,0.02849413]
[1737730575842,3.7093,269.58,269.56,0.02849413]
[1737730576237,0.46572379,269.61,269.49,13.76106227]
[1737730576439,0.46572379,269.61,269.44,13.76106227]
[1737730576740,0.44155,269.61,269.44,13.76106227]
[1737730577043,3.7101,269.52,269.44,13.76106227]
[1737730577240,0.44155,269.61,269.49,13.76106227]
[1737730577439,0.02354583,269.51,269.49,13.76106227]
[1737730577635,0.44155,269.61,269.49,13.76106227]
[1737730578743,3.7099,269.53,269.52,0.02721228]
[1737730580239,3.8741,269.57,269.44,13.76106227]
[1737730581345,0.02412572,269.53,269.48,0.02472494]
[1737730581745,3.7103,269.5,269.48,0.02472494]
[1737730583344,3.7114,269.42,269.39,13.76106227]
[1737730583639,6.9741,269.57,269.39,13.76106227]
[1737730584437,3.7104,269.5,269.45,0.02388089]
[1737730584640,0.02718726,269.51,269.45,0.02388089]
[1737730585544,0.02718726,269.51,269.36,13.76106227]
[1737730586446,0.02718726,269.51,269.48,13.76106227]
[1737730587644,3.7104,269.5,269.48,13.76106227]
[1737730587847,0.02718726,269.51,269.47,0.02782013]
[1737730588348,3.7114,269.43,269.36,17.47316227]
[1737730588646,3.8741,269.57,269.36,13.76106227]
[1737730589144,3.1,269.56,269.41,13.76106227]
[1737730589344,3.1,269.56,269.36,13.76106227]
[1737730589545,0.02778918,269.51,269.46,7.03e-05]
[1737730590048,3.7107,269.47,269.46,7.03e-05]
[1737730590247,0.02778918,269.51,269.46,7.03e-05]
[1737730590541,3.7106,269.48,269.46,7.03e-05]
[1737730590736,0.02778918,269.51,269.46,7.03e-05]
[1737730593146,3.7105,269.49,269.46,7.03e-05]
[1737730593343,0.02778918,269.51,269.46,7.03e-05]
[1737730593738,3.7106,269.48,269.46,7.03e-05]
[1737730594046,0.02778918,269.51,269.46,7.03e-05]
[1737730594244,0.02778918,269.51,269.46,13.76113257]
[1737730595744,3.8741,269.57,269.46,13.76113257]
[1737730596047,0.44155,269.61,269.51,13.76106227]
[1737730596944,0.02785056,269.59,269.57,13.76106227]
[1737730597247,0.44155,269.61,269.57,13.76106227]
[1737730597652,2.0198,269.68,269.57,13.76106227]
[1737730598042,3.7083,269.65,269.57,13.76106227]
[1737730598241,0.02463989,269.65,269.6,0.02592007]
[1737730598446,3.7085,269.64,269.6,0.02592007]
[1737730598740,0.02463989,269.65,269.6,0.02592007]
[1737730599139,3.7088,269.62,269.6,0.02592007]
[1737730599342,0.02463989,269.65,269.49,13.76106227]
[1737730599542,2.0198,269.68,269.49,13.76106227]
[1737730600449,0.02734524,269.61,269.56,0.02444771]
[1737730601449,3.7094,269.57,269.56,0.02444771]
[1737730601651,0.02734524,269.61,269.44,13.76106227]
[1737730601949,3.7103,269.51,269.44,13.76106227]
[1737730602141,2.0198,269.68,269.44,13.76106227]
[1737730602340,3.7101,269.52,269.47,3.7107]
[1737730602544,2.0198,269.68,269.44,13.76106227]
[1737730602742,0.02398386,269.52,269.47,0.02355622]
[1737730602949,3.7103,269.51,269.44,17.47206227]
[1737730603150,0.0275148,269.52,269.47,0.02582444]
[1737730603343,13.76106227,269.66,269.44,13.76106227]
[1737730603545,0.02619098,269.52,269.47,0.02672807]
[1737730603846,0.02479905,269.52,269.44,13.76106227]
[1737730604047,0.02479905,269.52,269.47,0.0265298]
[1737730604452,3.73489905,269.52,269.47,0.0265298]
[1737730604948,0.02479905,269.52,269.47,0.0265298]
[1737730606349,3.7103,269.51,269.47,0.0265298]
[1737730606545,0.02479905,269.52,269.47,0.0265298]
[1737730606850,3.7103,269.51,269.47,0.0265298]
[1737730607448,3.709,269.6,269.51,3.7101]
[1737730607753,0.7416747,269.66,269.55,13.76106227]
[1737730608456,3.7079,269.68,269.55,17.47066227]
[1737730608652,0.02507094,269.63,269.58,0.02672772]
[1737730614160,0.02507094,269.63,269.59,3.709]
[1737730614567,0.02507094,269.63,269.58,0.02672772]
[1737730615158,3.7091,269.59,269.58,0.02672772]
[1737730615661,3.709,269.6,269.58,0.02672772]
[1737730615961,0.02507094,269.63,269.58,0.02672772]
[1737730616363,3.7091,269.59,269.58,0.02672772]
[1737730616967,4.8081,269.62,269.45,13.76106227]
[1737730617167,3.7102,269.52,269.46,3.7108]
[1737730617369,3.1,269.61,269.4,13.76106227]
[1737730618264,0.02722085,269.53,269.48,0.02359262]
[1737730618464,3.7104,269.5,269.48,0.02359262]
[1737730618869,0.02722085,269.53,269.48,0.02359262]
[1737730619265,3.7103,269.51,269.48,0.02359262]
[1737730619667,0.02722085,269.53,269.48,0.02359262]
[1737730619960,3.7105,269.49,269.48,0.02359262]
[1737730620165,3.7105,269.49,269.48,9.262e-05]
[1737730620361,0.02722085,269.53,269.29,15.11936227]
[1737730620563,13.76106227,269.51,269.29,15.11936227]
[1737730620763,1.3505,269.5,269.29,15.11936227]
[1737730621166,1.943,269.49,269.29,15.11936227]
[1737730621375,0.02518136,269.42,269.37,0.02556607]
[1737730621569,0.02518136,269.42,269.38,3.7119]
[1737730621770,0.02518136,269.42,269.37,0.02556607]
[1737730622169,0.02518136,269.42,269.39,13.76106227]
[1737730623769,3.7104,269.5,269.4,3.7116]
[1737730624376,3.7105,269.49,269.4,3.7116]
[1737730624575,1.9439,269.57,269.39,13.76106227]
[1737730624771,1.9439,269.57,269.38,1.989]
[1737730625072,0.02685345,269.51,269.29,1.3583]
[1737730625375,13.76106227,269.52,269.29,1.3583]
[1737730625572,3.7117,269.4,269.31,3.7129]
[1737730625966,1.3497,269.51,269.29,1.3583]
[1737730626374,3.7115,269.42,269.37,0.0284709]
[1737730626568,0.02758935,269.43,269.37,0.0284709]
[1737730626971,3.7119,269.39,269.37,0.0284709]
[1737730629068,0.02758935,269.43,269.37,0.0284709]
[1737730629268,0.02758935,269.43,269.4,3.7116]
[1737730629472,0.02758935,269.43,269.37,0.0284709]
[1737730629870,0.02758935,269.43,269.37,3.7404709]
[1737730630169,0.02758935,269.43,269.37,0.0284709]
[1737730631376,3.7116,269.41,269.37,0.0284709]
[1737730631671,0.02758935,269.43,269.37,0.0284709]
[1737730631874,3.7118,269.39,269.37,0.0284709]
[1737730632074,0.02758935,269.43,269.37,0.0284709]
[1737730632871,3.712,269.38,269.37,0.0284709]
[1737730633770,3.7118,269.4,269.37,0.0284709]
[1737730633975,0.02758935,269.43,269.37,0.0284709]
[1737730634974,3.7117,269.4,269.37,0.0284709]
[1737730635773,3.7116,269.41,269.37,0.0284709]
[1737730635970,0.02758935,269.43,269.37,0.0284709]
[1737730636272,3.7115,269.42,269.37,0.0284709]
[1737730636468,0.02758935,269.43,269.37,0.0284709]
[1737730637075,3.7119,269.39,269.37,0.0284709]
[1737730637267,0.02758935,269.43,269.37,0.0284709]
[1737730638078,0.02758935,269.43,269.37,13.78953317]
[1737730638472,0.02758935,269.43,269.37,0.0284709]
[1737730639376,3.7118,269.4,269.37,0.0284709]
[1737730640277,3.73898935,269.43,269.37,0.0284709]
[1737730641181,0.02758935,269.43,269.37,0.0284709]
[1737730641382,3.7119,269.39,269.37,0.0284709]
[1737730641780,0.02758935,269.43,269.37,0.0284709]
[1737730645383,13.76106227,269.42,269.37,7.09e-05]
[1737730645577,16.0123,269.41,269.18,1.4451]
[1737730645882,13.76106227,269.36,269.18,1.4451]
[1737730646076,3.7136,269.27,269.2,3.7144]
[1737730646275,28.00106227,269.36,269.16,3.4249]
[1737730646474,16.86106227,269.36,269.16,3.4249]
[1737730646874,3.7135,269.28,269.23,0.02525509]
[1737730647081,0.02796196,269.29,269.23,0.02525509]
[1737730647674,3.7138,269.25,269.23,0.02525509]
[1737730647883,0.02796196,269.29,268.99,1.9716]
[1737730648080,13.76106227,269.25,269.05,13.76106227]
[1737730648284,13.76106227,269.2,269.0,1.4319]
[1737730648581,16.86106227,269.2,268.98,1.4254]
[1737730648882,3.1,269.2,268.99,13.76106227]
[1737730649082,0.02379743,269.12,268.99,13.76106227]
[1737730649278,0.02379743,269.12,269.02,3.7168]
[1737730649480,0.02379743,269.12,269.04,13.76106227]
[1737730649881,3.7135,269.27,269.09,13.76106227]
[1737730650383,1.4042,269.28,269.09,13.76106227]
[1737730651084,0.02733941,269.21,269.16,0.02825089]
[1737730651283,3.7148,269.18,269.16,0.02825089]
[1737730651486,15.71166227,269.2,269.04,3.7167]
[1737730651682,15.71166227,269.2,268.98,2.782]
[1737730651881,3.716,269.09,268.99,3.7173]
[1737730652081,3.716,269.09,268.98,2.782]
[1737730652384,3.7162,269.08,268.98,3.7174]
[1737730652582,16.86106227,269.14,268.92,1.3566]
[1737730652783,0.02759622,269.06,268.92,1.3566]
[1737730653286,0.02759622,269.06,268.96,3.7178]
[1737730653484,0.02759622,269.06,268.91,13.76106227]
[1737730653688,0.02759622,269.06,268.86,13.76106227]
[1737730654086,13.76106227,269.09,268.86,13.76106227]
[1737730654288,0.02514042,268.99,268.86,13.76106227]
[1737730654788,0.02514042,268.99,268.81,13.76106227]
[1737730655188,2.0416,269.03,268.81,13.76106227]
[1737730655388,0.02360778,268.93,268.81,13.76106227]
[1737730656183,0.02360778,268.93,268.76,13.76106227]
[1737730656586,2.8705,268.95,268.76,13.76106227]
[1737730656782,0.02561971,268.87,268.83,3.7195]
[1737730656992,2.0416,269.03,268.81,13.76106227]
[1737730657292,3.7177,268.97,268.82,5.6424]
[1737730657487,3.7177,268.97,268.82,1.9227]
[1737730657693,2.0416,269.03,268.82,1.9227]
[1737730657998,2.0416,269.03,268.86,13.76106227]
[1737730658196,0.0268272,268.95,268.9,0.0254471]
[1737730658991,0.0268272,268.95,268.92,3.7183]
[1737730659296,0.0268272,268.95,268.9,0.0254471]
[1737730660593,13.76106227,269.16,268.91,13.76106227]
[1737730660898,13.76106227,269.16,268.92,1.3576]
[1737730661495,13.76106227,269.01,268.82,1.9227]
[1737730661695,3.718,268.95,268.84,3.7194]
[1737730661897,3.718,268.95,268.89,0.02614549]
[1737730662094,3.7185,268.91,268.89,0.02614549]
[1737730662300,0.02661212,268.92,268.66,13.76106227]
[1737730662491,3.2299,268.9,268.66,13.76106227]
[1737730663398,0.02542759,268.81,268.75,0.02659736]
[1737730664098,0.02542759,268.81,268.75,3.74719736]
[1737730665297,0.02542759,268.81,268.75,0.02659736]
[1737730666194,0.02542759,268.81,268.76,3.7204]
[1737730666895,0.02542759,268.81,268.75,0.02659736]
[1737730669303,3.7205,268.77,268.75,0.02659736]
[1737730670300,0.02542759,268.81,268.75,0.02659736]
[1737730670599,0.02542759,268.81,268.76,3.7205]
[1737730670793,0.02542759,268.81,268.75,0.02659736]
[1737730671192,0.02542759,268.81,268.79,3.7201]
[1737730671898,0.02542759,268.81,268.75,0.02659736]
[1737730673099,3.7202,268.79,268.75,0.02659736]
[1737730673404,0.02542759,268.81,268.75,0.02659736]
[1737730673699,3.7202,268.79,268.75,0.02659736]
[1737730674503,0.02542759,268.81,268.75,0.02659736]
[1737730674703,3.7203,268.78,268.75,0.02659736]
[1737730676805,3.7201,268.8,268.75,0.02659736]
[1737730677005,0.02542759,268.81,268.75,0.02659736]
[1737730677397,13.76106227,268.78,268.56,13.76106227]
[1737730677804,3.2763,268.77,268.56,13.76106227]
[1737730678706,3.74661116,268.71,268.63,3.7223]
[1737730678905,0.02521116,268.71,268.56,13.76106227]
[1737730679501,0.02521116,268.71,268.61,13.76106227]
[1737730680801,13.76106227,268.97,268.66,13.76106227]
[1737730681002,3.7186,268.91,268.83,3.7195]
[1737730681199,2.15940499,268.96,268.76,13.76106227]
[1737730681402,3.7184,268.92,268.82,3.7197]
[1737730681600,2.15940499,268.96,268.76,13.76106227]
[1737730681904,0.02418289,268.89,268.83,0.02635217]
[1737730683804,0.02418289,268.89,268.87,3.719]
[1737730684006,0.02418289,268.89,268.83,0.02635217]
[1737730685308,0.02418289,268.89,268.83,3.74585217]
[1737730686014,0.02418289,268.89,268.83,0.02635217]
[1737730686406,3.1,269.07,268.87,3.7189]
[1737730686604,3.1,269.07,268.83,0.02635217]
[1737730686802,3.1,269.07,268.87,13.76106227]
[1737730687008,3.1,269.07,268.91,3.7184]
[1737730687309,3.1,269.07,268.84,1.9302]
[1737730687505,3.718,268.95,268.86,3.7191]
[1737730687707,0.02614172,268.97,268.77,1.4071]
[1737730688107,3.7182,268.94,268.78,3.7202]
[1737730688413,13.76106227,269.0,268.77,1.4071]
[1737730688608,3.7182,268.94,268.77,5.1274]
[1737730688807,13.76106227,269.0,268.77,1.4071]
[1737730689105,0.02558088,268.88,268.83,0.02513591]
[1737730689409,3.7181,268.94,268.85,3.7193]
[1737730689610,0.02689446,268.88,268.83,0.02470758]
[1737730689803,15.62306227,269.05,268.77,1.4071]
[1737730689804,3.7171,269.02,268.92,3.7183]
[1737730690003,1.862,269.05,268.85,13.76106227]
[1737730690201,1.862,269.05,268.86,2.0502]
[1737730690603,1.862,269.05,268.9,13.76106227]
[1737730691009,0.02486124,269.0,268.94,0.02763268]
[1737730691213,1.3844,269.11,268.95,13.76106227]
[1737730691507,0.02750053,269.0,268.95,13.76106227]
[1737730691707,1.3844,269.11,269.0,0.02786374]
[1737730691915,0.02684938,269.08,269.02,3.7169]
[1737730692108,0.02684938,269.08,269.0,0.02786374]
[1737730695412,3.7167,269.05,269.0,0.02786374]
[1737730695611,0.02684938,269.08,269.0,0.02786374]
[1737730696011,3.7167,269.04,269.0,0.02786374]
[1737730696719,0.02684938,269.08,269.0,0.02786374]
[1737730697114,0.02684938,269.08,269.0,3.41276374]
[1737730698312,1.17592,269.19,269.05,13.76106227]
[1737730698813,3.7147,269.18,269.1,3.7157]
[1737730699016,1.17592,269.19,269.0,3.3849]
[1737730699209,1.17592,269.19,269.03,13.76106227]
[1737730699409,1.17592,269.19,269.05,3.7165]
[1737730699410,3.7154,269.13,269.05,3.7165]
[1737730699620,0.02693455,269.14,269.08,0.02488281]
[1737730700119,3.7159,269.1,269.08,0.02488281]
[1737730701218,0.02693455,269.14,269.08,0.02488281]
[1737730701415,0.02693455,269.14,269.09,3.7159]
[1737730701614,0.02693455,269.14,269.08,0.02488281]
[1737730702118,0.02693455,269.14,269.09,3.7159]
[1737730702314,0.02693455,269.14,269.08,0.02488281]
[1737730704121,3.7159,269.1,269.08,0.02488281]
[1737730706025,13.76106227,269.13,268.9,3.7185]
[1737730706225,13.76106227,269.07,268.88,1.9806]
[1737730706425,1.3865,269.06,268.88,1.9806]
[1737730706629,3.7177,268.97,268.89,3.7187]
[1737730706825,1.3541,269.05,268.87,2.7951]
[1737730707026,0.0265487,268.96,268.9,0.02524033]
[1737730707229,3.7183,268.93,268.9,0.02524033]
[1737730707428,0.0265487,268.96,268.9,0.02524033]
[1737730707626,3.7183,268.92,268.9,0.02524033]
[1737730708531,3.7185,268.91,268.79,1.3911]
[1737730708725,0.0265487,268.96,268.79,1.3911]
[1737730709032,3.7187,268.9,268.79,1.3911]
[1737730709229,13.76106227,268.97,268.79,1.3911]
[1737730709430,13.76106227,268.97,268.81,3.7198]
[1737730709729,0.026265,268.92,268.86,0.02572193]
[1737730711031,3.7188,268.89,268.86,0.02572193]
[1737730711229,0.026265,268.92,268.86,0.02572193]
[1737730711731,3.7189,268.88,268.86,0.02572193]
[1737730712835,0.026265,268.92,268.86,0.02572193]
[1737730713934,3.7189,268.88,268.86,0.02572193]
[1737730714135,0.026265,268.92,268.86,0.02572193]
[1737730714338,3.719,268.87,268.86,0.02572193]
[1737730716037,3.7201,268.79,268.73,3.7209]
[1737730716238,3.7201,268.79,268.7,13.76106227]
[1737730716439,3.2864,268.91,268.65,13.76106227]
[1737730716638,13.76106227,268.87,268.65,13.76106227]
[1737730717238,0.02573004,268.79,268.65,13.76106227]
[1737730717441,3.7204,268.77,268.69,3.7215]
[1737730718740,0.02573004,268.79,268.65,13.76106227]
[1737730718943,3.74593004,268.79,268.7,3.7214]
[1737730719235,0.02573004,268.79,268.65,13.76106227]
[1737730719441,0.02573004,268.79,268.7,13.76106227]
[1737730719635,3.2864,268.91,268.7,13.76106227]
[1737730719846,3.719,268.87,268.78,3.7202]
[1737730720142,3.719,268.87,268.71,1.3258]
[1737730720338,3.719,268.87,268.79,3.7201]
[1737730721142,0.02509543,268.86,268.8,0.02388741]
[1737730722144,0.02509543,268.86,268.81,3.7198]
[1737730722345,0.02509543,268.86,268.8,0.02388741]
[1737730724044,3.7178,268.97,268.8,13.78494968]
[1737730724240,16.86106227,269.03,268.8,13.76106227]
[1737730724441,3.7174,268.99,268.91,3.7184]
[1737730724747,13.76106227,269.03,268.91,3.7184]
[1737730725146,3.7173,269.0,268.92,3.7183]
[1737730725446,3.74180203,269.0,268.94,0.0266963]
[1737730726447,0.02450203,269.0,268.94,0.0266963]
[1737730727545,3.7178,268.96,268.94,0.0266963]
[1737730728950,0.02450203,269.0,268.94,0.0266963]
[1737730729548,3.7182,268.93,268.8,12.09578857]
[1737730730149,3.7183,268.92,268.8,12.09578857]
[1737730730649,0.02560253,268.89,268.83,0.0243503]
[1737730730850,13.76106227,269.0,268.76,3.4467]
[1737730731054,0.02386367,268.89,268.83,0.02375513]
[1737730731353,0.02386367,268.89,268.76,3.4467]
[1737730731553,3.719,268.87,268.83,0.02347294]
[1737730731746,0.02386367,268.89,268.83,0.02347294]
[1737730732150,3.7194,268.84,268.83,0.02347294]
[1737730733754,0.02386367,268.89,268.71,1.3258]
[1737730733952,13.76106227,268.9,268.71,1.3258]
[1737730734256,13.76106227,268.9,268.69,3.7215]
[1737730734750,0.02364324,268.82,268.69,3.7215]
[1737730735254,0.02364324,268.82,268.61,1.4498]
[1737730735457,1.3641,268.83,268.61,1.4498]
[1737730735649,3.7460897,268.74,268.65,3.722]
[1737730735854,0.0251897,268.74,268.61,1.4498]
[1737730736049,0.0251897,268.74,268.63,13.76106227]
[1737730736652,6.3175,268.93,268.68,13.76106227]
[1737730737459,3.7192,268.86,268.75,3.7206]
[1737730737657,6.3175,268.93,268.75,3.7206]
[1737730737962,0.02647893,268.83,268.78,0.02509734]
[1737730738260,3.7198,268.82,268.78,0.02509734]
[1737730738457,0.02647893,268.83,268.78,0.02509734]
[1737730740057,3.7198,268.82,268.78,0.02509734]
[1737730740357,0.02647893,268.83,268.78,0.02509734]
[1737730742163,0.02647893,268.83,268.8,3.7199]
[1737730742361,0.02647893,268.83,268.78,0.02509734]
[1737730742661,0.02647893,268.83,268.79,3.7201]
[1737730743257,0.02647893,268.83,268.78,0.02509734]
[1737730743459,0.02647893,268.83,268.78,3.74529734]
[1737730743861,0.02647893,268.83,268.79,3.7201]
[1737730744062,0.02647893,268.83,268.78,0.02509734]
[1737730744964,3.74617893,268.83,268.78,0.02509734]
[1737730745664,3.74607893,268.83,268.78,0.02509734]
[1737730745862,0.02647893,268.83,268.78,0.02509734]
[1737730746764,3.4029,268.99,268.78,0.02509734]
[1737730746964,3.4029,268.99,268.77,13.76106227]
[1737730747163,3.7178,268.97,268.77,13.76106227]
[1737730747462,55.96901719,269.03,268.73,4.8823]
[1737730747463,42.20795492,269.03,268.82,13.76106227]
[1737730747768,42.20795492,269.03,268.87,13.76106227]
[1737730747968,0.02573244,268.94,268.89,0.02734574]
[1737730748874,0.02573244,268.94,268.89,3.74604574]
[1737730749264,0.02573244,268.94,268.89,0.02734574]
[1737730749571,0.02573244,268.94,268.89,3.74604574]
[1737730750169,3.7164,269.06,268.89,0.02734574]
[1737730750372,3.7164,269.06,268.93,13.76106227]
[1737730750573,4.7599,269.14,268.93,13.76106227]
[1737730750775,4.7599,269.14,269.03,3.7168]
[1737730751273,0.02398589,269.11,269.06,0.02687729]
[1737730752271,3.7159,269.1,269.06,0.02687729]
[1737730752471,0.02398589,269.11,269.06,0.02687729]
[1737730753268,7.53100634,269.22,269.08,13.76106227]
[1737730753468,3.3877,269.27,269.04,2.7909]
[1737730753670,13.76106227,269.24,269.04,2.7909]
[1737730754065,13.76106227,269.24,269.05,3.7165]
[1737730754066,3.7155,269.13,269.05,3.7165]
[1737730754275,13.76106227,269.24,268.98,13.76106227]
[1737730754473,0.02669551,269.12,269.06,0.02633171]
[1737730754668,3.7155,269.13,269.03,3.7167]
[1737730754874,0.02484604,269.12,269.06,0.02722175]
[1737730755573,3.716,269.09,269.06,0.02722175]
[1737730756572,3.7161,269.08,269.06,0.02722175]
[1737730756779,13.76106227,269.09,268.89,2.0083]
[1737730756980,1.8581,269.07,268.89,2.0083]
[1737730757369,3.717,269.02,268.95,3.7179]
[1737730757872,0.02786601,269.01,268.96,0.02588217]
[1737730758273,0.02786601,269.01,268.99,3.7172]
[1737730758472,3.3013,269.18,268.98,13.76106227]
[1737730758678,3.3013,269.18,268.93,13.76106227]
[1737730759375,3.7164,269.06,268.93,13.76106227]
[1737730759678,0.02629296,269.07,269.02,0.02461141]
[1737730760077,3.7167,269.04,269.02,0.02461141]
[1737730760669,3.7179,268.96,268.89,2.0083]
[1737730760878,2.0309,269.06,268.89,2.0083]
[1737730761872,3.7175,268.98,268.95,0.02529472]
[1737730763475,0.02423236,269.0,268.95,0.02529472]
[1737730763676,3.7177,268.97,268.95,0.02529472]
[1737730763879,0.02423236,269.0,268.77,13.76106227]
[1737730764179,3.7183,268.92,268.84,3.7194]
[1737730764475,13.76106227,269.05,268.84,3.7194]
[1737730764874,3.7184,268.92,268.84,3.7194]
[1737730765278,3.7184,268.92,268.85,0.02626505]
[1737730765576,0.02509896,268.91,268.85,0.02626505]
[1737730765778,0.02509896,268.91,268.85,3.74556505]
[1737730765977,0.02509896,268.91,268.85,0.02626505]
[1737730767181,3.7189,268.89,268.85,0.02626505]
[1737730767373,0.02509896,268.91,268.85,0.02626505]
[1737730767780,3.7189,268.88,268.85,0.02626505]
[1737730767973,0.02509896,268.91,268.85,0.02626505]
[1737730768373,3.7189,268.88,268.85,0.02626505]
[1737730768982,3.7186,268.9,268.85,0.02626505]
[1737730769182,0.02509896,268.91,268.85,0.02626505]
[1737730773080,3.7192,268.86,268.85,0.02626505]
[1737730773281,1.387,268.9,268.77,3.7204]
[1737730773877,3.7195,268.84,268.78,3.7202]
[1737730774278,3.7195,268.84,268.72,13.76106227]
[1737730774485,3.74413524,268.84,268.78,3.74737878]
[1737730774885,3.7196,268.83,268.78,3.74737878]
[1737730775086,0.02463524,268.84,268.78,0.02707878]
[1737730775487,3.7201,268.79,268.78,0.02707878]
[1737730775785,3.7201,268.79,268.68,1.943]
[1737730775786,0.02463524,268.84,268.67,0.51202]
[1737730775976,3.7208,268.74,268.67,0.51202]
[1737730776176,3.1,268.84,268.67,0.51202]
[1737730776177,13.76106227,268.8,268.67,0.51202]
[1737730776377,4.9247,268.79,268.67,0.51202]
[1737730776583,3.7207,268.75,268.67,0.51202]
[1737730776785,3.7207,268.75,268.68,3.7216]
[1737730777585,3.7208,268.74,268.67,0.51202]
[1737730777979,0.02715558,268.76,268.67,0.51202]
[1737730780579,0.02715558,268.76,268.69,3.7215]
[1737730780779,0.02715558,268.76,268.67,0.51202]
[1737730781483,13.76106227,268.75,268.67,0.51202]
[1737730782089,3.7215,268.69,268.67,0.51202]
[1737730783490,3.7216,268.68,268.67,0.51202]
[1737730784289,0.02370591,268.7,268.53,1.9401]
[1737730784591,13.76106227,268.7,268.52,3.32855073]
[1737730784792,0.0241431,268.64,268.52,3.32855073]
[1737730785293,3.7228,268.6,268.55,3.7234]
[1737730785493,0.0241431,268.64,268.32,21.21436227]
[1737730785689,3.7239,268.53,268.47,3.7244]
[1737730785989,0.0267833,268.53,268.39,13.76106227]
[1737730786389,3.7245,268.48,268.42,3.7251]
[1737730786593,0.02648876,268.49,268.39,13.76106227]
[1737730786889,0.02648876,268.49,268.34,1.8709]
[1737730787095,1.9596,268.63,268.44,13.76106227]
[1737730787290,16.86106227,268.76,268.5,13.76106227]
[1737730787497,1.9451,268.7,268.45,16.54186227]
[1737730788394,0.02793012,268.6,268.55,0.02475278]
[1737730788597,3.723,268.59,268.55,0.02475278]
[1737730788789,0.02793012,268.6,268.55,0.02475278]
[1737730790700,0.02793012,268.6,268.46,1.8655]
[1737730790893,13.76106227,268.47,268.06,13.76106227]
[1737730791094,13.76106227,268.33,268.06,13.76106227]
[1737730791294,3.7261,268.36,268.06,13.76106227]
[1737730791497,13.76106227,268.38,268.13,13.76106227]
[1737730791698,13.76106227,268.33,268.06,13.76106227]
[1737730792193,0.02373887,268.22,268.06,13.76106227]
[1737730792493,0.02373887,268.22,268.05,4.781]
[1737730792700,3.7274,268.27,268.05,4.781]
[1737730792998,0.02504991,268.16,268.05,4.781]
[1737730794795,13.76106227,268.06,267.97,1.9177]
[1737730794994,13.76106227,268.18,267.97,1.9177]
[1737730795193,13.76106227,268.29,268.06,13.76106227]
[1737730795392,13.76106227,268.29,268.07,2.8233]
[1737730795597,3.3154,268.32,268.07,2.8233]
[1737730795798,22.54698768,268.29,268.07,2.8233]
[1737730796005,22.54698768,268.24,268.07,2.8233]
[1737730796503,0.02451,268.18,268.13,0.02613539]
[1737730800210,3.7279,268.24,268.13,0.02613539]
[1737730800400,29.32777663,271.26,268.17,22.54698768]
[1737730800401,22.54698768,268.4,268.17,22.54698768]
[1737730800801,3.7271,268.29,268.17,22.54698768]
[1737730801012,1.3746,268.39,268.17,22.54698768]
[1737730801206,1.3746,268.39,268.22,22.54698768]
[1737730801408,0.02372688,268.31,268.25,0.02674213]
[1737730801603,3.2593,268.43,268.27,22.54698768]
[1737730801909,22.54698768,268.5,268.28,1.9316]
[1737730802212,24.60418768,268.55,268.32,22.54698768]
[1737730802805,2.0572,268.55,268.37,22.54698768]
[1737730803103,0.02419168,268.49,268.43,0.02767258]
[1737730803308,2.14803897,268.69,268.47,22.54698768]
[1737730803507,22.54698768,268.65,268.42,22.54698768]
[1737730803708,1.4742,268.69,268.36,22.54698768]
[1737730803709,22.54698768,268.6,268.36,22.54698768]
[1737730804411,22.54698768,268.6,268.45,0.02352447]
[1737730804610,0.02594872,268.51,268.45,0.02352447]
[1737730805113,3.7242,268.5,268.45,0.02352447]